bitfinex-derivatives/quotes_ETHF0:USTF0_20250101
["timestamp","ask_amount","ask_price","bid_price","bid_amount"]
[1735708145870,3.2078,3347.1,3347.0,0.29941]
[1735708147579,0.29939,3347.3,3347.0,0.29941]
[1735708147772,0.29939,3347.3,3347.1,0.4326]
[1735708147976,0.29938,3347.4,3347.1,1.1634]
[1735708148280,0.29938,3347.4,3347.2,0.4558]
[1735708148576,0.29937,3347.5,3347.3,0.29938]
[1735708149576,0.29937,3347.5,3347.2,1.6198]
[1735708149974,0.29937,3347.5,3347.3,0.29938]
[1735708150175,3.2078,3347.7,3347.2,1.6198]
[1735708150375,0.29936,3347.6,3347.4,0.29938]
[1735708150975,3.2078,3347.7,3347.5,0.29936]
[1735708151175,3.51432879,3347.9,3347.6,0.4421]
[1735708151380,3.51432879,3347.9,3347.8,0.29934]
[1735708151776,3.51432879,3347.9,3347.8,0.75134]
[1735708153077,0.29932,3348.1,3347.9,0.29933]
[1735708153479,0.29932,3348.0,3347.8,0.75134]
[1735708153886,0.29932,3348.0,3347.9,0.29933]
[1735708154185,0.76272,3348.1,3347.9,0.29933]
[1735708154686,0.29932,3348.0,3347.9,0.29933]
[1735708155283,0.29933,3347.9,3347.8,0.452]
[1735708155486,0.29934,3347.8,3347.6,0.4421]
[1735708155689,0.29934,3347.8,3347.6,0.74146]
[1735708156382,0.29934,3347.9,3347.7,0.29935]
[1735708156583,0.4415,3348.0,3347.6,0.4421]
[1735708156888,0.29935,3347.7,3347.6,0.4421]
[1735708157692,0.29935,3347.8,3347.6,0.4421]
[1735708157990,0.29935,3347.7,3347.6,0.74146]
[1735708158592,0.29935,3347.8,3347.6,0.74146]
[1735708158993,3.95582879,3348.0,3347.6,0.4421]
[1735708159393,0.29935,3347.7,3347.6,0.4421]
[1735708160291,0.29936,3347.6,3347.5,0.29937]
[1735708160491,0.29936,3347.6,3347.5,0.74337]
[1735708161193,0.29936,3347.7,3347.6,0.29936]
[1735708161596,3.51432879,3347.9,3347.8,0.29934]
[1735708161799,4.69953566,3348.0,3347.9,0.29933]
[1735708161989,4.69953566,3348.0,3347.9,1.46333]
[1735708163294,8.67491353,3348.1,3347.9,1.164]
[1735708163495,8.67491353,3348.1,3348.0,0.29932]
[1735708163794,9.12221353,3348.1,3348.0,0.29932]
[1735708164791,9.571464,3348.1,3348.0,0.29932]
[1735708165198,9.272154,3348.1,3347.4,3.95625]
[1735708165495,0.29934,3347.9,3347.8,0.29933]
[1735708166091,4.421154,3348.1,3347.7,1.168]
[1735708166092,0.29934,3347.8,3347.7,1.168]
[1735708166294,1.17474,3347.8,3347.7,1.168]
[1735708167398,4.69934353,3347.8,3347.7,1.168]
[1735708170102,0.29937,3347.5,3347.4,3.50717]
[1735708170599,0.29937,3347.5,3347.4,0.29937]
[1735708170999,8.05709187,3347.8,3346.9,7.49412033]
[1735708171201,0.29941,3347.1,3347.0,1.46741]
[1735708171999,0.29941,3347.1,3347.0,1.168]
[1735708172401,3.82401353,3347.1,3347.0,1.168]
[1735708173403,5.56663566,3347.3,3347.0,1.168]
[1735708173605,5.56663566,3347.3,3347.0,1.46741]
[1735708173606,0.44936615,3347.1,3347.0,1.46741]
[1735708174097,0.44936615,3347.1,3347.0,1.168]
[1735708175098,4.99893566,3347.2,3347.0,1.168]
[1735708176306,4.99893566,3347.2,3347.0,1.46741]
[1735708176803,0.44936615,3347.1,3347.0,1.46741]
[1735708178202,4.99893566,3347.2,3347.1,0.2994]
[1735708178203,0.2994,3347.2,3347.1,0.2994]
[1735708179900,0.2994,3347.2,3347.1,0.7246]
[1735708180101,0.8671,3347.3,3347.1,0.4252]
[1735708180296,1.16649,3347.3,3347.2,0.29939]
[1735708180496,0.29939,3347.2,3347.1,0.7246]
[1735708185506,0.4405,3347.3,3347.1,0.4252]
[1735708185704,0.73989,3347.3,3347.2,0.29939]
[1735708187112,0.4405,3347.3,3347.0,1.168]
[1735708187418,0.2994,3347.1,3347.0,1.168]
[1735708187718,0.29942,3346.9,3346.8,1.19073]
[1735708187916,0.29943,3346.8,3346.7,7.90985344]
[1735708188122,0.73963,3346.8,3346.7,3.2078]
[1735708188619,0.73963,3346.8,3346.7,3.50724]
[1735708189421,0.4402,3346.8,3346.7,3.50724]
[1735708190014,4.24451086,3347.0,3346.9,0.29942]
[1735708191120,4.69389642,3347.0,3346.9,0.29942]
[1735708192424,0.72282,3347.0,3346.9,0.29942]
[1735708193220,0.4234,3347.0,3346.6,0.4279]
[1735708193423,0.29943,3346.9,3346.8,0.29942]
[1735708195821,3.82067956,3346.9,3346.8,0.29942]
[1735708197527,0.29943,3346.9,3346.8,0.29942]
[1735708198721,3.82067956,3346.9,3346.8,0.29942]
[1735708200125,0.29942,3346.9,3346.8,0.29942]
[1735708203628,3.52124956,3347.1,3346.6,1.5959]
[1735708203832,3.82065956,3347.1,3347.0,0.29941]
[1735708204027,3.52124956,3347.1,3347.0,0.29941]
[1735708205028,3.52124956,3347.2,3347.1,0.2994]
[1735708206737,0.29939,3347.3,3346.8,4.70205344]
[1735708207035,0.29939,3347.3,3347.2,0.29939]
[1735708207832,0.74872716,3347.3,3347.2,0.29939]
[1735708209430,0.44933716,3347.3,3347.2,0.29939]
[1735708209939,0.74872716,3347.3,3347.2,0.29939]
[1735708210328,0.44933716,3347.3,3347.2,0.29939]
[1735708210533,3.52280082,3347.3,3347.1,3.2078]
[1735708210837,3.52280082,3347.3,3347.2,0.29939]
[1735708211436,3.52280082,3347.3,3347.2,0.76299]
[1735708212932,0.44931471,3347.3,3347.2,0.76299]
[1735708214633,4.69953566,3347.4,3347.2,0.4636]
[1735708214841,4.69953566,3347.4,3347.3,0.29939]
[1735708216242,2.35074669,3347.4,3347.3,1.46339]
[1735708217941,2.35074669,3347.5,3347.4,0.29938]
[1735708218240,2.35074669,3347.5,3347.4,0.74778]
[1735708219136,2.35074669,3347.6,3347.5,0.29937]
[1735708219839,2.35074669,3347.6,3347.5,0.74657]
[1735708222841,2.65010669,3347.6,3347.5,0.4472]
[1735708223043,0.29937,3347.5,3347.2,0.4636]
[1735708223241,0.29937,3347.5,3347.4,0.75288]
[1735708224042,3.52612003,3347.6,3347.4,0.75288]
[1735708224344,3.52612003,3347.5,3347.4,0.75288]
[1735708224945,3.97872003,3347.5,3347.4,0.75288]
[1735708226440,4.27809003,3347.5,3347.3,0.29938]
[1735708226744,0.73409,3347.4,3347.3,1.164]
[1735708228846,5.88297082,3347.4,3347.3,1.164]
[1735708229544,5.88297082,3347.4,3347.3,1.46339]
[1735708230247,1.18343516,3347.4,3347.3,1.46339]
[1735708231944,4.256626,3347.4,3347.3,1.46339]
[1735708233738,4.256626,3347.4,3347.3,1.164]
[1735708234941,4.256626,3347.4,3347.3,1.46339]
[1735708235642,4.70596154,3347.4,3347.3,1.46339]
[1735708236145,4.70596154,3347.4,3347.3,0.29939]
[1735708236944,4.256626,3347.4,3347.3,0.29939]
[1735708238146,5.43362566,3347.4,3347.3,0.29939]
[1735708239244,5.8829507,3347.4,3347.3,0.29939]
[1735708241441,0.29941,3347.1,3347.0,0.29941]
[1735708241647,1.0740472,3347.2,3346.9,0.9204]
[1735708241839,0.74731,3347.0,3346.9,1.21982]
[1735708243846,5.34623725,3347.0,3346.9,0.9204]
[1735708244551,5.34623725,3347.0,3346.9,0.4626]
[1735708244848,1.8213572,3347.0,3346.9,0.76202]
[1735708245049,1.5219472,3347.0,3346.9,0.76202]
[1735708245250,0.4479,3347.0,3346.9,0.76202]
[1735708246444,0.4479,3347.0,3346.9,5.46968738]
[1735708247655,2.7981261,3347.0,3346.9,5.46968738]
[1735708248648,2.3502261,3347.0,3346.9,5.46968738]
[1735708248952,2.3502261,3347.0,3346.9,6.98923458]
[1735708250045,2.3502261,3347.0,3346.9,5.91518738]
[1735708250246,2.3502261,3347.0,3346.9,5.77681662]
[1735708260352,3.97421721,3347.0,3346.9,1.20752]
[1735708261458,3.52488005,3347.0,3346.9,1.20752]
[1735708262864,3.52488005,3347.0,3346.9,2.37152]
[1735708263864,3.52488005,3347.0,3346.9,3.4455672]
[1735708264069,1.58142365,3347.0,3346.9,3.4455672]
[1735708264368,0.44933716,3347.3,3347.0,0.29941]
[1735708264369,2.3512421,3347.1,3347.0,0.29941]
[1735708264561,2.3512421,3347.1,3347.0,1.3734572]
[1735708265259,1.3940421,3347.1,3347.0,6.3734572]
[1735708265462,0.18362365,3347.3,3347.2,0.29939]
[1735708265662,0.18362365,3347.3,3347.2,4.5812372]
[1735708265863,4.69953566,3347.6,3347.5,0.29937]
[1735708266163,4.69953566,3347.6,3347.5,2.5374172]
[1735708267065,4.69953566,3347.6,3347.5,5.7452172]
[1735708267462,0.4492449,3347.8,3347.7,0.29935]
[1735708268563,0.29936,3347.6,3347.5,10.44018042]
[1735708269165,0.29936,3347.6,3347.5,8.22829176]
[1735708269467,0.73775,3347.8,3347.6,0.29936]
[1735708269668,0.4384,3347.8,3347.6,0.29936]
[1735708269870,0.29936,3347.7,3347.5,8.52765176]
[1735708270063,0.4395,3347.6,3347.5,8.52765176]
[1735708270567,0.4395,3347.6,3347.5,6.17231237]
[1735708275467,0.4395,3347.6,3347.5,1.46336]
[1735708278179,4.69953566,3348.0,3347.5,1.164]
[1735708278480,0.4292,3347.8,3347.7,1.3733972]
[1735708279274,0.4292,3347.8,3347.7,0.29935]
[1735708283485,0.4292,3347.8,3347.7,1.46335]
[1735708283486,0.72854,3347.8,3347.7,1.46335]
[1735708283687,1.17779161,3347.8,3347.7,1.46335]
[1735708287786,0.87845161,3347.8,3347.7,1.46335]
[1735708289687,0.4292,3347.8,3347.7,1.46335]
[1735708293095,0.4292,3347.8,3347.7,4.67115]
[1735708297888,0.4292,3347.8,3347.7,9.38010237]
[1735708299397,0.4292,3347.8,3347.7,4.67115]
[1735708301097,0.72854,3347.8,3347.7,4.67115]
[1735708302186,0.4292,3347.8,3347.7,4.67115]
[1735708302392,0.8784496,3347.8,3347.7,4.67115]
[1735708305400,1.1777896,3347.8,3347.7,4.67115]
[1735708305901,0.4292,3347.8,3347.7,9.38010237]
[1735708306901,0.4292,3347.8,3347.7,4.67115]
[1735708307601,0.4292,3347.8,3347.7,1.46335]
[1735708308301,0.87845434,3347.8,3347.7,1.46335]
[1735708308697,4.851,3347.7,3347.6,3.31153237]
[1735708308892,0.29937,3347.5,3347.4,3.64866271]
[1735708309097,0.29937,3347.5,3347.3,9.05545635]
[1735708309098,1.0740472,3347.5,3347.3,9.05545635]
[1735708309399,3.50718,3347.4,3347.3,7.79278635]
[1735708309596,3.86494355,3347.4,3347.3,7.79278635]
[1735708309795,8.86494355,3347.4,3347.3,7.79278635]
[1735708310197,4.851,3347.3,3346.3,7.10225635]
[1735708310392,0.29947,3346.4,3346.3,7.10225635]
[1735708311600,0.29947,3346.4,3346.2,2.21558]
[1735708312098,4.6971415,3346.7,3346.3,0.29948]
[1735708312305,0.29946,3346.5,3346.2,1.9161]
[1735708312602,0.29947,3346.4,3346.3,0.29947]
[1735708314099,0.29947,3346.4,3346.2,1.9161]
[1735708314306,0.29947,3346.4,3346.2,2.21558]
[1735708315706,0.29948,3346.3,3346.2,2.21558]
[1735708316406,0.29947,3346.4,3346.2,2.21558]
[1735708321411,0.29945,3346.6,3346.4,0.29946]
[1735708322210,0.29946,3346.5,3346.3,0.29947]
[1735708323310,0.29946,3346.5,3346.4,0.29947]
[1735708323508,0.29945,3346.6,3346.4,0.29947]
[1735708325108,3.2078,3346.9,3346.2,1.9161]
[1735708325411,0.29946,3346.5,3346.4,0.29946]
[1735708326209,0.29945,3346.6,3346.5,0.29946]
[1735708326406,0.29946,3346.5,3346.4,0.29946]
[1735708331311,3.51164922,3347.1,3346.4,3.2078]
[1735708331516,3.51164922,3347.1,3347.0,0.29941]
[1735708331917,3.51164922,3347.1,3347.0,1.64081]
[1735708332620,0.2994,3347.2,3347.0,1.3414]
[1735708332820,0.2994,3347.2,3347.1,0.2994]
[1735708334221,1.07442422,3347.4,3347.0,1.3414]
[1735708334528,0.2994,3347.1,3347.0,1.64081]
[1735708334726,0.2994,3347.2,3347.1,0.2994]
[1735708334928,1.07442422,3347.4,3347.0,1.3414]
[1735708335224,0.29939,3347.3,3347.2,0.29939]
[1735708336814,6.90542404,3347.8,3347.1,1.07442422]
[1735708337020,0.29938,3347.5,3347.4,0.29937]
[1735708337315,7.97984826,3347.8,3347.3,1.07442422]
[1735708337520,0.29938,3347.4,3347.3,1.37380422]
[1735708337722,0.29937,3347.5,3347.4,0.29937]
[1735708339323,0.29936,3347.7,3347.6,0.29936]
[1735708339622,3.2078,3347.8,3347.7,0.29935]
[1735708339824,3.51164922,3347.9,3347.7,0.29935]
[1735708339825,3.51164922,3347.9,3347.8,0.29934]
[1735708340123,6.17072688,3348.3,3347.9,0.29933]
[1735708340124,3.51164922,3348.0,3347.9,0.29933]
[1735708340430,3.51164922,3348.0,3347.9,1.37375422]
[1735708342022,4.9964515,3348.2,3348.0,0.29932]
[1735708342023,0.29931,3348.2,3348.0,0.29932]
[1735708343329,0.29931,3348.3,3347.7,6.36959474]
[1735708343529,0.2993,3348.4,3347.8,0.29935]
[1735708343720,3.5071,3348.5,3348.3,0.29931]
[1735708343921,3.5071,3348.5,3348.4,0.9069]
[1735708352729,3.5071,3348.5,3348.4,0.4599]
[1735708358835,3.5071,3348.5,3348.4,0.75921]
[1735708359341,3.5071,3348.5,3348.4,0.4599]
[1735708360439,3.5071,3348.5,3348.4,0.75921]
[1735708361142,0.29935,3348.1,3348.0,0.29935]
[1735708363037,0.29935,3348.1,3347.9,2.043]
[1735708363038,1.07358038,3348.3,3347.9,2.043]
[1735708363244,0.29935,3348.0,3347.9,2.34235]
[1735708364139,0.29935,3348.0,3347.9,0.872]
[1735708364337,0.29935,3348.0,3347.9,1.17136]
[1735708368843,0.29935,3348.1,3347.9,1.17136]
[1735708369439,0.29935,3348.1,3348.0,0.29935]
[1735708370335,7.7930296,3348.5,3347.9,0.872]
[1735708370539,0.29932,3348.4,3347.9,1.94558038]
[1735708370740,0.29932,3348.4,3348.3,0.29932]
[1735708372645,3.50712,3348.4,3348.3,0.29932]
[1735708374243,7.46798382,3348.4,3348.3,0.29932]
[1735708375339,3.9563346,3348.4,3348.3,0.29932]
[1735708377143,8.6534761,3348.4,3348.3,0.29932]
[1735708377845,5.4456761,3348.4,3348.3,0.29932]
[1735708378342,0.7485346,3348.4,3348.3,0.29932]
[1735708379955,6.17074688,3348.4,3348.3,0.29932]
[1735708381049,0.29933,3348.3,3348.2,0.29933]
[1735708382751,0.29935,3348.0,3347.9,2.34235]
[1735708384454,0.29934,3348.1,3348.0,0.29935]
[1735708384649,4.9949592,3348.1,3348.0,0.29935]
[1735708386255,0.29934,3348.1,3348.0,0.29935]
[1735708386554,0.74858402,3348.1,3348.0,0.29935]
[1735708387247,0.29935,3348.0,3347.9,2.34235]
[1735708388656,9.07922688,3348.2,3347.9,2.043]
[1735708388855,0.29934,3348.1,3348.0,0.29935]
[1735708390551,11.26445923,3348.1,3348.0,0.29935]
[1735708393161,10.96511923,3348.1,3348.0,0.29935]
[1735708396158,0.29932,3348.4,3348.1,0.29934]
[1735708396159,5.15134874,3348.2,3348.1,0.29934]
[1735708397558,4.70212017,3348.2,3348.1,1.37292038]
[1735708397766,2.28692017,3348.2,3348.1,1.37292038]
[1735708399160,2.35199557,3348.3,3348.1,14.83919097]
[1735708399460,2.35199557,3348.3,3348.2,0.29933]
[1735708400360,2.35199557,3348.3,3348.2,11.74829806]
[1735708403261,2.35199557,3348.3,3348.2,4.68263879]
[1735708404468,5.87648171,3348.6,3348.5,0.2993]
[1735708405165,5.87648171,3348.6,3348.5,1.6026]
[1735708405757,10.45931604,3348.6,3348.5,1.6026]
[1735708407370,4.58283433,3348.6,3348.5,1.6026]
[1735708408574,5.0320629,3348.6,3348.5,1.6026]
[1735708410171,5.87648171,3348.7,3348.6,0.29929]
[1735708410372,5.87648171,3348.7,3348.6,1.46329]
[1735708411877,0.44922857,3348.7,3348.6,1.46329]
[1735708412576,0.44922857,3348.7,3348.6,2.53687038]
[1735708413180,0.44922857,3348.8,3348.6,2.23758038]
[1735708413488,0.44922857,3348.8,3348.7,0.29929]
[1735708414674,6.73251616,3348.9,3348.8,0.29928]
[1735708414979,6.73251616,3348.9,3348.8,1.37286038]
[1735708416271,7.18164705,3348.9,3348.8,1.37286038]
[1735708419982,6.73251616,3348.9,3348.8,1.37286038]
[1735708423284,5.55617303,3348.9,3348.8,1.37286038]
[1735708425678,7.18162746,3348.9,3348.8,1.37286038]
[1735708426187,3.97382746,3348.9,3348.8,1.37286038]
[1735708426987,3.52471616,3348.9,3348.8,1.37286038]
[1735708429889,3.82398616,3348.9,3348.8,0.29928]
[1735708430683,0.29928,3348.8,3348.7,1.37286038]
[1735708432393,0.7483913,3348.8,3348.7,1.37286038]
[1735708432584,0.4491113,3348.8,3348.7,1.37286038]
[1735708432985,0.7483913,3348.8,3348.7,1.164]
[1735708433586,0.2993,3348.6,3348.5,2.96338038]
[1735708434188,5.55616959,3348.8,3348.5,2.96338038]
[1735708434391,0.29929,3348.7,3348.5,2.96338038]
[1735708434791,0.4315,3348.6,3348.5,2.96338038]
[1735708438290,3.52255438,3348.7,3348.5,1.5905]
[1735708438489,3.52255438,3348.7,3348.6,1.37288038]
[1735708438699,3.52255438,3348.7,3348.6,1.83808038]
[1735708439197,2.34969902,3348.7,3348.6,1.83808038]
[1735708441696,3.97168957,3348.7,3348.6,1.83807038]
[1735708443203,4.69596158,3348.8,3348.6,1.53878038]
[1735708443503,4.69596158,3348.8,3348.7,0.72529]
[1735708447802,4.69596158,3348.9,3348.8,0.29928]
[1735708448002,4.69596158,3348.9,3348.8,1.37286038]
[1735708449695,2.3529899,3348.9,3348.8,12.97677449]
[1735708451203,2.3529899,3349.0,3348.9,0.29927]
[1735708451399,2.3529899,3349.0,3348.9,1.37285038]
[1735708452703,2.35480387,3349.0,3348.9,6.08054294]
[1735708455706,0.00181397,3349.0,3348.9,12.97436913]
[1735708461808,0.00181397,3349.0,3348.9,5.90870986]
[1735708462312,2.3529899,3349.2,3348.9,6.68302024]
[1735708462613,2.3529899,3349.2,3349.1,1.37283038]
[1735708464814,2.3529899,3349.4,3349.3,0.29923]
[1735708465012,2.3529899,3349.4,3349.3,2.53581038]
[1735708465618,2.7883899,3349.4,3349.3,2.53581038]
[1735708469321,3.96488486,3349.4,3349.3,2.53581038]
[1735708470727,0.4354,3349.4,3349.3,2.53581038]
[1735708471923,1.80821038,3349.4,3349.2,0.29924]
[1735708472120,0.29924,3349.2,3349.1,2.29016519]
[1735708472320,4.58062038,3349.2,3349.1,1.71616519]
[1735708472624,9.58062038,3349.2,3349.1,1.71616519]
[1735708472827,9.93814378,3349.2,3349.1,1.71616519]
[1735708473625,0.29929,3348.8,3348.6,0.29929]
[1735708473926,3.2078,3348.7,3348.6,0.29929]
[1735708474324,0.2993,3348.6,3348.2,1.46233]
[1735708474625,1.37290038,3348.4,3348.2,1.46233]
[1735708474824,3.50712,3348.3,3348.2,1.163]
[1735708475022,0.29933,3348.2,3348.0,0.29934]
[1735708475418,3.50713,3348.3,3348.1,0.29934]
[1735708475721,0.29933,3348.2,3348.1,0.29934]
[1735708477015,0.29933,3348.2,3348.0,0.29934]
[1735708477218,0.29934,3348.1,3347.9,0.29935]
[1735708477619,0.29934,3348.2,3348.0,0.29935]
[1735708477821,0.29934,3348.2,3347.9,0.29935]
[1735708478222,2.64684345,3348.2,3347.8,2.23658038]
[1735708478417,2.34750345,3348.2,3348.0,0.29935]
[1735708478622,2.34750345,3348.2,3347.9,0.29936]
[1735708478833,2.34750345,3348.2,3348.0,0.29934]
[1735708482629,2.34750345,3348.2,3348.0,1.37292038]
[1735708485423,2.34750345,3348.2,3348.0,1.07358038]
[1735708485424,0.29935,3348.2,3348.0,1.07358038]
[1735708486229,3.50713,3348.3,3348.0,1.37293038]
[1735708486432,3.50713,3348.3,3348.0,1.82963038]
[1735708486624,3.50713,3348.3,3348.1,0.4547]
[1735708487932,3.50713,3348.3,3348.1,0.75405]
[1735708489921,3.2078,3348.3,3348.1,0.4547]
[1735708490235,3.2078,3348.3,3348.2,0.29934]
[1735708490530,3.50713,3348.3,3348.2,0.29934]
[1735708491931,3.50713,3348.3,3348.1,0.4547]
[1735708492128,3.50713,3348.3,3348.1,0.75405]
[1735708492331,3.50713,3348.3,3348.2,0.29934]
[1735708492526,3.2078,3348.3,3348.2,0.29934]
[1735708494639,3.2078,3348.3,3348.2,1.37292038]
[1735708495343,2.34750345,3348.5,3348.2,1.07358038]
[1735708495638,2.34750345,3348.5,3348.4,0.29932]
[1735708496131,3.82390392,3348.6,3348.3,0.4413]
[1735708496132,0.29931,3348.6,3348.3,0.4413]
[1735708496340,3.50712,3348.5,3348.4,0.29932]
[1735708497937,3.2078,3348.5,3348.4,0.29932]
[1735708499138,3.50711,3348.5,3348.4,0.29932]
[1735708501840,3.50711,3348.5,3348.3,0.74063]
[1735708502049,0.29932,3348.4,3348.3,0.4413]
[1735708502644,1.37290038,3348.4,3348.3,0.4413]
[1735708502843,1.37290038,3348.4,3348.1,0.4547]
[1735708502844,0.29934,3348.2,3348.1,0.4547]
[1735708503045,0.29934,3348.2,3348.1,0.8747]
[1735708503941,1.37292038,3348.2,3348.1,0.8747]
[1735708504142,0.29934,3348.2,3348.1,0.8747]
[1735708515655,3.82393392,3348.2,3348.1,0.8747]
[1735708516960,3.82393392,3348.2,3348.1,1.17405]
[1735708517252,5.44805612,3348.2,3348.1,1.17405]
[1735708517454,5.44805612,3348.2,3348.1,0.8747]
[1735708518355,6.5216365,3348.2,3348.1,0.4547]
[1735708518548,6.9706665,3348.2,3347.8,0.4609]
[1735708518746,4.28138038,3347.9,3347.5,7.05609123]
[1735708518946,1.37297038,3347.6,3347.5,7.05609123]
[1735708520749,0.2994,3347.5,3347.4,0.4228]
[1735708520950,3.5072,3347.5,3347.4,0.4228]
[1735708522058,0.29941,3347.4,3347.3,0.8838]
[1735708522356,1.37299038,3347.4,3347.3,0.8838]
[1735708523150,1.07358038,3347.4,3346.9,1.26363816]
[1735708523352,0.29944,3347.1,3347.0,0.4242]
[1735708526559,2.64754968,3347.1,3347.0,0.4242]
[1735708526860,2.64754968,3347.1,3347.0,0.72365]
[1735708527058,2.34810968,3347.1,3347.0,0.72365]
[1735708527265,2.34810968,3347.1,3347.0,1.79723038]
[1735708527266,1.64900968,3347.1,3347.0,1.79723038]
[1735708527453,0.95000968,3347.1,3347.0,1.79723038]
[1735708527656,3.52311638,3347.3,3347.0,1.49778038]
[1735708527855,3.52311638,3347.3,3347.2,1.37301038]
[1735708529560,3.2078,3347.5,3347.4,0.29941]
[1735708529762,3.2078,3347.5,3347.4,1.37299038]
[1735708532963,3.5072,3347.5,3347.4,1.37299038]
[1735708533665,3.2078,3347.5,3347.4,1.37299038]
[1735708542273,3.5072,3347.5,3347.4,1.37299038]
[1735708546460,3.2078,3347.5,3347.4,1.37299038]
[1735708546871,3.5072,3347.5,3347.4,1.37299038]
[1735708547268,3.5072,3347.5,3347.4,1.07358038]
[1735708547767,3.5072,3347.5,3347.4,0.4352]
[1735708547979,3.5072,3347.5,3347.4,0.73461]
[1735708550872,3.5072,3347.5,3347.4,0.4352]
[1735708552471,3.5072,3347.5,3347.4,0.73461]
[1735708553874,3.5072,3347.5,3347.4,1.89861]
[1735708556076,3.2078,3347.5,3347.4,1.89861]
[1735708556272,3.2078,3347.5,3347.4,2.97219038]
[1735708556476,6.73091638,3347.5,3347.4,2.97219038]
[1735708557676,3.2078,3347.5,3347.4,2.97219038]
[1735708559081,6.73091638,3347.5,3347.4,2.97219038]
[1735708560274,7.18024069,3347.5,3347.4,2.97219038]
[1735708561282,7.47964069,3347.5,3347.4,2.97219038]
[1735708561472,7.18024069,3347.5,3347.4,2.97219038]
[1735708561673,3.2078,3347.5,3347.4,2.97219038]
[1735708564781,3.52311638,3347.6,3347.4,2.67278038]
[1735708564977,3.52311638,3347.6,3347.5,0.7641]
[1735708565177,3.52311638,3347.6,3347.5,1.2251]
[1735708566579,4.70078753,3347.7,3347.6,0.29939]
[1735708566787,3.52641047,3347.9,3347.8,0.29938]
[1735708566986,3.52641047,3347.9,3347.8,2.44654076]
[1735708567586,3.11832956,3347.9,3347.8,7.44654076]
[1735708567784,1.68312956,3347.9,3347.8,7.44654076]
[1735708568485,3.2078,3348.5,3348.4,0.29932]
[1735708568688,3.2078,3348.5,3348.4,1.46232]
[1735708568878,3.2078,3348.5,3348.4,2.53590038]
[1735708569075,3.6296,3348.5,3348.4,1.163]
[1735708569283,4.35221,3348.5,3348.4,1.163]
[1735708569886,4.80142605,3348.5,3348.4,1.163]
[1735708570086,4.07881605,3348.5,3348.4,2.53590038]
[1735708571496,3.6296,3348.5,3348.4,2.53590038]
[1735708579610,0.4218,3348.5,3348.4,2.53590038]
[1735708580593,0.459,3348.9,3348.8,0.29929]
[1735708580794,0.4393,3348.9,3348.8,1.37287038]
[1735708587891,0.8793,3348.9,3348.8,1.37287038]
[1735708588897,0.4551,3349.4,3348.8,1.07358038]
[1735708588898,3.6629,3349.4,3348.8,1.07358038]
[1735708589100,3.6629,3349.4,3349.3,0.29924]
[1735708589101,4.1029,3349.4,3349.3,0.29924]
[1735708589296,4.5661,3349.4,3349.3,0.29924]
[1735708592200,4.86533,3349.4,3349.3,0.29924]
[1735708592501,4.5661,3349.4,3349.3,0.29924]
[1735708596207,4.5661,3349.4,3349.2,2.23658038]
[1735708596403,4.86534,3349.4,3349.2,2.23658038]
[1735708596711,4.5661,3349.4,3349.3,1.46224]
[1735708597504,0.29927,3349.0,3348.8,0.29928]
[1735708597706,0.29927,3349.0,3348.8,1.37286038]
[1735708597707,0.8896,3348.9,3348.8,1.37286038]
[1735708597901,0.8896,3348.9,3348.8,2.53586038]
[1735708598097,3.2078,3349.0,3348.8,2.23658038]
[1735708598304,0.4397,3349.3,3349.2,0.29925]
[1735708599104,0.4397,3349.3,3349.2,0.73125]
[1735708599312,0.4397,3349.3,3349.2,1.15245]
[1735708606407,0.4397,3349.3,3349.2,0.29925]
[1735708606915,0.4397,3349.3,3349.1,1.46225]
[1735708607214,0.73895,3349.3,3349.1,1.46225]
[1735708607615,0.73895,3349.3,3349.1,1.46226]
[1735708608315,0.29925,3349.2,3349.1,1.163]
[1735708608706,0.29925,3349.2,3349.1,1.46226]
[1735708608912,1.16735,3349.3,3349.1,1.46226]
[1735708609507,0.8681,3349.3,3349.1,1.163]
[1735708609816,0.29925,3349.2,3349.1,1.163]
[1735708610116,1.16735,3349.3,3349.1,1.46226]
[1735708611017,0.8681,3349.3,3349.1,1.163]
[1735708611311,0.29928,3348.9,3348.8,1.163]
[1735708611512,0.29931,3348.6,3348.4,6.15024825]
[1735708611823,0.2993,3348.7,3348.5,0.29931]
[1735708612012,0.2993,3348.7,3348.4,5.85093825]
[1735708612013,0.29931,3348.5,3348.4,5.85093825]
[1735708612213,3.50711,3348.5,3348.4,5.85093825]
[1735708613322,3.2078,3348.5,3348.4,1.46232]
[1735708613520,3.2078,3348.5,3348.4,2.53590038]
[1735708614519,3.2078,3348.5,3348.4,2.97210038]
[1735708615514,3.50711,3348.6,3348.4,2.97210038]
[1735708615720,3.50711,3348.6,3348.4,2.53590038]
[1735708616613,0.29933,3348.3,3348.2,1.07358038]
[1735708616821,1.07358038,3348.5,3348.0,4.68793825]
[1735708617020,0.29935,3348.1,3348.0,5.85093825]
[1735708617924,4.81214,3348.2,3348.0,6.15028825]
[1735708618222,4.5128,3348.2,3348.1,0.29935]
[1735708619317,4.0757,3348.2,3348.1,0.29935]
[1735708619711,4.0757,3348.2,3347.9,1.07358038]
[1735708619712,4.37504,3348.2,3347.9,1.07358038]
[1735708619914,0.29935,3348.1,3347.9,1.37294038]
[1735708620114,4.0757,3348.2,3347.9,1.37294038]
[1735708620319,4.0757,3348.2,3347.8,2.4716]
[1735708620516,4.0757,3348.2,3348.1,0.29935]
[1735708623626,3.6511,3348.2,3348.1,0.29935]
[1735708624523,3.2078,3348.2,3348.1,2.56731299]
[1735708624715,0.4237,3348.5,3348.1,2.26796299]
[1735708624918,0.4237,3348.5,3348.4,0.29932]
[1735708625817,3.2078,3348.6,3348.5,0.29931]
[1735708626017,4.68037866,3348.7,3348.6,0.2993]
[1735708626222,0.4336,3348.8,3348.7,0.2993]
[1735708626629,0.4336,3348.8,3348.7,1.4623]
[1735708627324,0.73289,3348.8,3348.7,1.163]
[1735708628628,0.4336,3348.8,3348.4,0.29932]